bitfinex/quotes_SOLUSD_20241102
["timestamp","ask_amount","ask_price","bid_price","bid_amount"]
[1730562542365,12.11753662,163.42,163.41,6.1195]
[1730562543584,12.11753662,163.42,163.4,20.12549]
[1730562543780,11.51648202,163.41,163.4,44.153354]
[1730562544381,12.11753662,163.42,163.41,43.776884]
[1730562544570,18.57986784,163.42,163.41,49.896384]
[1730562547096,18.57986784,163.42,163.41,50.272854]
[1730562547391,18.57986784,163.42,163.41,49.896384]
[1730562548374,18.57986784,163.42,163.41,20.0]
[1730562548671,18.57986784,163.42,163.37,30.6053]
[1730562548672,18.57986784,163.42,163.37,65.451364]
[1730562548895,17.97881324,163.38,163.37,65.451364]
[1730562549074,17.97881324,163.38,163.37,65.576854]
[1730562549569,17.97881324,163.38,163.37,45.200384]
[1730562551077,17.97881324,163.38,163.37,65.200384]
[1730562554877,0.6010546,163.42,163.38,20.37647]
[1730562554878,17.97881324,163.39,163.38,20.37647]
[1730562555084,17.97881324,163.39,163.38,20.0]
[1730562555470,17.97881324,163.39,163.37,20.0]
[1730562555673,17.97881324,163.38,163.37,20.0]
[1730562556993,17.97881324,163.38,163.37,49.897884]
[1730562562280,17.97881324,163.38,163.37,43.776884]
[1730562562593,17.97881324,163.38,163.37,20.0]
[1730562564703,17.97881324,163.38,163.36,26.27549191]
[1730562564897,17.97881324,163.37,163.36,26.27549191]
[1730562565082,17.97881324,163.37,163.36,46.27549191]
[1730562565485,17.97881324,163.37,163.34,26.1221]
[1730562565486,35.95762648,163.37,163.34,26.1221]
[1730562565701,17.97881324,163.35,163.34,26.1221]
[1730562566604,11.51934825,163.35,163.34,26.1221]
[1730562566909,11.51934825,163.35,163.34,20.0]
[1730562568490,11.51934825,163.35,163.33,15.3062]
[1730562568693,11.51934825,163.34,163.3,15.3088]
[1730562569007,11.51934825,163.31,163.3,45.209284]
[1730562570386,11.51934825,163.32,163.31,43.776884]
[1730562571285,11.51934825,163.32,163.31,49.900184]
[1730562572013,11.51934825,163.32,163.31,26.1233]
[1730562572586,11.51934825,163.32,163.3,15.3088]
[1730562572802,11.51934825,163.31,163.28,6.35564885]
[1730562572996,11.51934825,163.29,163.27,6.1244]
[1730562573211,11.51934825,163.28,163.26,21.4374]
[1730562573522,11.51934825,163.28,163.25,1.06332158]
[1730562573523,11.51934825,163.27,163.25,1.06332158]
[1730562573810,11.51934825,163.26,163.24,6.1258]
[1730562574110,11.51934825,163.25,163.24,6.1258]
[1730562574493,11.51934825,163.25,163.23,15.3156]
[1730562574711,11.51934825,163.24,163.23,15.3156]
[1730562575095,11.51934825,163.24,163.18,6.35921471]
[1730562575414,61.532893,163.28,163.19,21.4473]
[1730562575622,0.1,163.26,163.19,21.4473]
[1730562576515,36.06613264,163.2,163.19,21.4473]
[1730562576697,36.06613264,163.2,163.19,15.3195]
[1730562576903,18.03306632,163.2,163.19,39.096384]
[1730562577220,18.03306632,163.2,163.19,15.3195]
[1730562577398,18.03306632,163.2,163.19,35.3195]
[1730562577590,36.06613264,163.2,163.19,35.3195]
[1730562578012,18.03306632,163.2,163.19,35.3195]
[1730562578733,36.06613264,163.2,163.19,35.3195]
[1730562579018,18.03306632,163.2,163.19,41.4473]
[1730562580701,36.06613264,163.2,163.18,20.0]
[1730562580907,18.03306632,163.19,163.18,20.0]
[1730562581118,18.03306632,163.19,163.17,6.1285]
[1730562581291,18.03306632,163.18,163.17,6.1285]
[1730562582597,18.03306632,163.18,163.17,20.0]
[1730562582794,18.03306632,163.18,163.17,43.776884]
[1730562583114,18.03306632,163.19,163.18,43.776884]
[1730562584212,18.03306632,163.19,163.18,49.905084]
[1730562588622,18.03306632,163.19,163.18,26.1282]
[1730562597506,18.03306632,163.19,163.18,20.0]
[1730562598511,11.5427945,163.19,163.18,20.0]
[1730562599603,11.5427945,163.19,163.18,26.1282]
[1730562603123,11.5427945,163.2,163.18,65.225584]
[1730562603430,11.5427945,163.19,163.18,65.225584]
[1730562603928,11.5427945,163.19,163.18,41.4487]
[1730562604126,11.5427945,163.19,163.18,35.3205]
[1730562604816,11.5427945,163.19,163.18,41.4487]
[1730562605917,11.5427945,163.21,163.18,65.225584]
[1730562606251,11.5427945,163.24,163.22,20.0]
[1730562606420,11.5427945,163.25,163.24,43.776884]
[1730562606619,11.5427945,163.25,163.24,20.0]
[1730562607137,11.5427945,163.25,163.19,6.4479]
[1730562607138,11.5427945,163.25,163.21,24.027864]
[1730562607310,11.5427945,163.22,163.21,44.153354]
[1730562607516,11.5427945,163.22,163.21,20.0]
[1730562608141,57.7139725,163.22,163.18,21.4484]
[1730562608329,11.5427945,163.19,163.18,21.4484]
[1730562609433,11.5427945,163.19,163.18,41.4484]
[1730562611426,11.5427945,163.19,163.18,65.225284]
[1730562615623,11.5427945,163.19,163.18,41.4484]
[1730562616036,11.5427945,163.19,163.18,35.3205]
[1730562616234,11.5427945,163.19,163.17,10.98484832]
[1730562616444,11.5427945,163.18,163.17,10.98484832]
[1730562616648,11.5427945,163.18,163.15,21.4523]
[1730562616836,11.5427945,163.16,163.15,21.4523]
[1730562617628,11.5427945,163.16,163.13,30.6502]
[1730562617834,11.5427945,163.14,163.13,30.6502]
[1730562618329,11.5427945,163.14,163.13,60.78454176]
[1730562618529,11.5427945,163.15,163.13,80.78454176]
[1730562619039,11.5427945,163.15,163.14,20.0]
[1730562620545,11.5427945,163.18,163.16,20.0]
[1730562620745,11.5427945,163.19,163.17,43.776884]
[1730562620936,11.5427945,163.2,163.18,43.776884]
[1730562621249,11.5427945,163.19,163.18,43.776884]
[1730562622250,11.5427945,163.19,163.18,49.905084]
[1730562624145,11.5427945,163.2,163.18,49.905084]
[1730562624342,11.5427945,163.2,163.18,65.225584]
[1730562625454,11.5427945,163.23,163.2,20.0]
[1730562625657,11.5427945,163.25,163.24,20.0]
[1730562627642,11.5427945,163.25,163.24,26.1259]
[1730562629850,11.5427945,163.27,163.24,26.1259]
[1730562630156,11.5427945,163.27,163.24,41.4407]
[1730562630347,11.5427945,163.28,163.24,41.4407]
[1730562630557,11.5427945,163.3,163.26,20.0]
[1730562630741,11.5427945,163.28,163.26,20.0]
[1730562630936,11.5427945,163.29,163.26,20.0]
[1730562631842,11.5427945,163.28,163.26,20.0]
[1730562632048,0.1,163.34,163.28,20.0]
[1730562632250,11.5427945,163.29,163.25,23.776884]
[1730562632458,11.5427945,163.26,163.25,20.0]
[1730562633543,11.5427945,163.26,163.25,26.1255]
[1730562634437,11.5427945,163.26,163.25,20.0]
[1730562636936,11.5427945,163.26,163.22,6.1263]
[1730562636937,11.5427945,163.26,163.23,20.0]
[1730562637136,11.5427945,163.24,163.23,20.0]
[1730562637744,11.5427945,163.24,163.22,21.443]
[1730562637962,11.5427945,163.23,163.22,21.443]
[1730562638782,11.5427945,163.23,163.22,15.3167]
[1730562646556,11.5427945,163.24,163.23,43.776884]
[1730562647982,11.5427945,163.24,163.23,49.903184]
[1730562649471,11.5427945,163.27,163.23,95.850584]
[1730562649880,11.5427945,163.25,163.23,95.850584]
[1730562650586,11.5427945,163.28,163.24,0.37647]
[1730562651379,11.5427945,163.26,163.24,0.37647]
[1730562651593,11.5427945,163.26,163.25,49.902384]
[1730562651888,11.5427945,163.26,163.25,26.1255]
[1730562652574,11.5427945,163.27,163.26,20.0]
[1730562654275,11.5427945,163.27,163.26,26.1251]
[1730562663991,11.5427945,163.28,163.27,23.776884]
[1730562665079,11.5427945,163.28,163.27,6.1248]
[1730562665279,57.7139725,163.28,163.27,6.1248]
[1730562666092,57.7139725,163.28,163.26,35.3129]
[1730562666272,11.5427945,163.27,163.23,21.4419]
[1730562666469,46.171178,163.28,163.24,20.0]
[1730562666999,46.171178,163.28,163.25,6.1255]
[1730562667374,11.5427945,163.26,163.25,6.1255]
[1730562673694,11.5427945,163.26,163.24,20.0]
[1730562673897,11.5427945,163.25,163.24,26.1257]
[1730562675483,11.5427945,163.27,163.24,41.4405]
[1730562675991,11.5427945,163.3,163.28,20.0]
[1730562676891,11.5427945,163.29,163.28,43.776884]
[1730562677480,11.5427945,163.3,163.28,49.901284]
[1730562678378,11.5427945,163.3,163.28,65.212384]
[1730562679481,11.5427945,163.31,163.29,23.776884]
[1730562679704,46.171178,163.36,163.3,20.0]
[1730562679705,11.5427945,163.32,163.3,20.0]
[1730562679998,11.5427945,163.33,163.31,23.776884]
[1730562680176,11.5427945,163.34,163.32,20.0]
[1730562680806,11.5427945,163.33,163.32,20.0]
[1730562681480,11.5427945,163.33,163.32,26.1229]
[1730562682097,11.5427945,163.33,163.31,21.4311]
[1730562682300,11.5427945,163.32,163.31,21.4311]
[1730562682797,11.5427945,163.32,163.31,41.4311]
[1730562689100,11.5427945,163.32,163.31,35.3079]
[1730562689411,11.5427945,163.32,163.26,20.0]
[1730562689588,11.5427945,163.29,163.28,59.087584]
[1730562689992,11.5427945,163.29,163.28,35.3107]
[1730562690205,11.5427945,163.29,163.26,6.1251]
[1730562690386,11.5427945,163.27,163.26,6.1251]
[1730562691323,11.5427945,163.27,163.26,39.089784]
[1730562691687,11.5427945,163.27,163.26,59.089784]
[1730562692616,11.5427945,163.27,163.26,65.214884]
[1730562692815,11.5427945,163.27,163.26,41.438]
[1730562693105,11.5427945,163.27,163.24,36.98163254]
[1730562693106,11.5427945,163.27,163.24,12.47753254]
[1730562693318,11.5427945,163.25,163.24,6.1256]
[1730562693685,11.5427945,163.26,163.24,6.25109]
[1730562693892,11.38087671,163.28,163.25,0.12549]
[1730562694315,11.38087671,163.28,163.25,20.12549]
[1730562694502,11.38087671,163.28,163.27,20.0]
[1730562694705,11.38087671,163.28,163.27,26.1248]
[1730562696802,11.38087671,163.28,163.27,20.0]
[1730562697110,11.38087671,163.28,163.27,26.1248]
[1730562700706,11.5427945,163.29,163.27,65.213684]
[1730562702303,11.5427945,163.28,163.27,65.213684]
[1730562703119,11.5427945,163.29,163.27,65.213684]
[1730562703306,11.5427945,163.3,163.29,20.0]
[1730562703507,11.5427945,163.31,163.29,20.0]
[1730562704522,11.5427945,163.33,163.31,20.0]
[1730562704722,11.5427945,163.32,163.31,20.0]
[1730562704910,11.5427945,163.33,163.31,20.0]
[1730562705227,11.5427945,163.32,163.31,20.0]
[1730562705424,11.5427945,163.32,163.31,26.1233]
[1730562709627,11.5427945,163.33,163.32,43.776884]
[1730562710925,11.5427945,163.33,163.32,49.899784]
[1730562711630,11.5427945,163.33,163.32,26.1229]
[1730562717833,11.5427945,163.34,163.33,20.0]
[1730562719218,11.5427945,163.34,163.33,26.1225]
[1730562720532,11.5427945,163.35,163.33,26.1225]
[1730562720840,17.3472546,163.42,163.33,26.1225]
[1730562720841,11.5427945,163.34,163.33,41.4289]
[1730562721945,11.5427945,163.36,163.33,65.205784]
[1730562723111,11.5427945,163.35,163.33,65.205784]
[1730562723314,11.5427945,163.34,163.33,65.205784]
[1730562724240,11.5427945,163.36,163.34,23.902374]
[1730562724420,11.5427945,163.37,163.35,20.0]
[1730562724619,11.5427945,163.38,163.37,20.0]
[1730562725221,11.5427945,163.38,163.37,26.121]
[1730562726236,11.5427945,163.4,163.37,49.897884]
[1730562726431,0.6010546,163.42,163.37,49.897884]
[1730562726432,11.5427945,163.41,163.39,20.12549]
[1730562726633,0.6010546,163.42,163.41,20.0]
[1730562727524,0.6010546,163.42,163.41,26.1195]
[1730562728021,12.1438491,163.42,163.41,26.1195]
[1730562730137,0.6010546,163.42,163.41,50.021874]
[1730562731619,12.1438491,163.42,163.4,21.4193]
[1730562731849,11.5427945,163.41,163.36,15.3029]
[1730562732152,11.5427945,163.37,163.36,15.3029]
[1730562733440,11.5427945,163.37,163.36,35.3029]
[1730562733952,11.5427945,163.37,163.36,41.4243]
[1730562734459,17.99178253,163.37,163.36,41.4243]
[1730562736748,17.99178253,163.37,163.36,35.3029]
[1730562739828,35.98356506,163.37,163.33,15.3061]
[1730562740048,17.99178253,163.34,163.33,15.3061]
[1730562741145,17.99178253,163.34,163.33,35.3061]
[1730562742244,17.99178253,163.34,163.33,41.4286]
[1730562744863,17.99178253,163.35,163.33,41.4286]
[1730562745233,17.99178253,163.34,163.33,41.4286]
[1730562751162,17.99178253,163.34,163.31,6.1233]
[1730562751395,24.21318253,163.36,163.32,20.0]
[1730562751584,17.99178253,163.33,163.32,20.0]
[1730562751892,17.99178253,163.33,163.31,20.0]
[1730562752068,24.21318253,163.36,163.3,21.6699909]
[1730562752069,0.1,163.34,163.3,21.6699909]
[1730562752266,17.99178253,163.31,163.3,15.3088]
[1730562753294,17.99178253,163.31,163.25,21.4394]
[1730562753603,17.99178253,163.26,163.25,41.4394]
[1730562753770,17.99178253,163.26,163.25,65.216284]
[1730562754383,17.99178253,163.29,163.26,43.776884]
[1730562754591,11.52430373,163.3,163.26,20.0]
[1730562755267,11.52430373,163.29,163.28,20.0]
[1730562756596,11.52430373,163.29,163.28,26.1244]
[1730562761180,11.52430373,163.3,163.28,26.1244]
[1730562761384,11.52430373,163.3,163.28,41.4355]
[1730562762399,11.52430373,163.29,163.28,65.212384]
[1730562762803,11.52430373,163.29,163.28,41.4355]
[1730562778118,11.52430373,163.3,163.28,41.4355]
[1730562778319,11.52430373,163.31,163.29,23.776884]
[1730562779023,11.52430373,163.3,163.29,23.776884]
[1730562779210,11.52430373,163.3,163.29,43.776884]
[1730562780315,11.52430373,163.3,163.29,49.900884]
[1730562783028,11.52430373,163.31,163.3,20.0]
[1730562784528,11.52430373,163.31,163.3,26.1236]
[1730562786209,11.52430373,163.31,163.3,6.1236]
[1730562786539,11.52430373,163.31,163.25,37.01172069]
[1730562786540,11.52430373,163.31,163.26,41.438]
[1730562786713,11.52430373,163.27,163.26,41.438]
[1730562788726,37.0517,163.37,163.29,0.12549]
[1730562788727,11.52430373,163.37,163.29,0.12549]
[1730562789043,11.52430373,163.4,163.35,44.153354]
[1730562790232,11.52430373,163.41,163.35,72.18965773]
[1730562790528,0.6010546,163.42,163.37,61.75638133]
[1730562790911,18.58055193,163.42,163.39,20.0]
[1730562791307,17.97949733,163.41,163.39,20.0]
[1730562791519,17.97949733,163.4,163.39,20.0]
[1730562792420,17.97949733,163.4,163.39,26.1203]
[1730562792726,17.97949733,163.41,163.39,41.4211]
[1730562793115,18.58055193,163.42,163.39,41.4211]
[1730562794122,17.97949733,163.41,163.39,41.4211]
[1730562795931,17.97949733,163.4,163.39,41.4211]
[1730562799040,17.97949733,163.41,163.39,41.4211]
[1730562801629,18.58055193,163.42,163.39,41.4211]
[1730562802244,0.6010546,163.42,163.39,41.4211]
[1730562803211,18.58055193,163.42,163.39,41.4211]
[1730562804827,0.6010546,163.42,163.41,43.902374]
[1730562805337,0.6010546,163.42,163.41,44.153354]
[1730562807020,0.6010546,163.42,163.41,50.272854]
[1730562807717,0.6010546,163.42,163.41,26.1195]
[1730562809334,18.58055193,163.42,163.41,26.1195]
[1730562810531,12.10770768,163.42,163.41,26.1195]
[1730562815951,12.10770768,163.42,163.41,6.1195]
[1730562816745,12.10770768,163.42,163.37,30.6048]
[1730562816931,11.50665308,163.38,163.37,50.6048]
[1730562817134,11.50665308,163.39,163.38,20.0]
[1730562818164,11.50665308,163.39,163.38,26.1207]
[1730562823355,11.50665308,163.4,163.38,41.4224]
[1730562823733,11.50665308,163.41,163.38,72.0259]
[1730562823938,11.50665308,163.41,163.4,20.0]
[1730562824669,11.50665308,163.41,163.39,20.0]
[1730562824840,11.50665308,163.4,163.39,20.0]
[1730562825445,11.50665308,163.4,163.39,26.1203]
[1730562827881,11.50665308,163.41,163.39,41.4211]
[1730562828051,12.10770768,163.42,163.39,41.4211]
[1730562828668,11.50665308,163.41,163.39,41.4211]
[1730562831377,0.6010546,163.42,163.39,41.4211]
[1730562831378,11.50665308,163.4,163.39,41.4211]
[1730562837286,11.50665308,163.4,163.37,26.1207]
[1730562837459,11.50665308,163.38,163.37,26.1207]
[1730562837664,11.50665308,163.38,163.37,6.1207]
[1730562838482,11.50665308,163.38,163.37,21.4233]
[1730562839063,11.50665308,163.38,163.37,41.4233]
[1730562840484,11.50665308,163.39,163.38,20.0]
[1730562840778,11.50665308,163.39,163.38,26.1207]
[1730562847679,11.50665308,163.39,163.38,6.1207]
[1730562847891,11.50665308,163.39,163.37,15.3026]
[1730562848090,11.50665308,163.38,163.37,15.3026]
[1730562848612,11.50665308,163.38,163.37,21.4236]
[1730562849688,11.50665308,163.38,163.37,15.3026]
[1730562856994,11.50665308,163.38,163.35,6.1218]
[1730562856995,57.6332654,163.38,163.32,10.97392493]
[1730562857200,0.1,163.38,163.33,21.4284]
[1730562857386,11.50665308,163.34,163.33,27.79794993]
[1730562858510,11.50665308,163.36,163.33,47.79794993]
[1730562858704,11.50665308,163.35,163.33,47.79794993]
[1730562865112,11.50665308,163.34,163.33,47.79794993]
[1730562869314,11.50665308,163.35,163.33,47.79794993]
[1730562872112,21.9063,163.41,163.33,47.79794993]
[1730562872113,11.50665308,163.36,163.33,47.79794993]
[1730562873026,11.50665308,163.39,163.34,20.0]
[1730562873522,11.50665308,163.39,163.33,69.91740301]
[1730562873523,11.50665308,163.4,163.36,20.0]
[1730562874132,11.50665308,163.41,163.38,20.0]
[1730562874702,11.50665308,163.41,163.37,20.0]
[1730562874906,11.50665308,163.4,163.37,20.0]
[1730562875116,11.50665308,163.4,163.38,21.4224]
[1730562875628,11.50665308,163.41,163.39,20.0]
[1730562876197,0.6010546,163.42,163.39,20.0]
[1730562876405,0.6010546,163.42,163.39,31.50665308]
[1730562877119,0.6010546,163.42,163.41,26.1195]
[1730562879237,0.6010546,163.42,163.41,50.272854]
[1730562879410,0.6010546,163.42,163.41,61.77950708]
[1730562883512,0.6010546,163.42,163.41,50.272854]
[1730562895838,0.6010546,163.42,163.41,61.77950708]
[1730562896933,0.6010546,163.42,163.41,69.92808507]
[1730562898733,0.6010546,163.42,163.41,75.38808507]
[1730562900642,0.6010546,163.42,163.41,69.92808507]
[1730562903538,0.6010546,163.42,163.41,75.38808507]
[1730562904783,0.6010546,163.42,163.41,55.732854]
[1730562905435,0.6010546,163.42,163.41,50.272854]
[1730562906165,0.6010546,163.42,163.41,61.77950708]
[1730562906663,0.6010546,163.42,163.41,78.32573853]
[1730562908668,0.6010546,163.42,163.41,83.78573853]
[1730562910776,0.6010546,163.42,163.41,78.32573853]
[1730562914451,0.6010546,163.42,163.41,83.78573853]
[1730562914647,5.46e-05,163.42,163.41,83.98573853]
[1730562914871,5.46e-05,163.42,163.41,97.63818507]
[1730562915047,5.46e-05,163.42,163.41,106.03583853]
[1730562915254,5.46e-05,163.42,163.41,112.22705918]
[1730562915657,5.46e-05,163.42,163.41,106.76705918]
[1730562917863,11.50665308,163.54,163.47,0.37647]
[1730562918174,6.0043,163.55,163.52,23.776884]
[1730562918175,11.50665308,163.55,163.52,23.776884]
[1730562918478,11.50665308,163.57,163.53,20.0]
[1730562918855,12.10770768,163.59,163.55,20.0]
[1730562919173,12.10770768,163.59,163.56,23.776884]
[1730562919350,12.10770768,163.59,163.57,20.0]
[1730562919549,0.6010546,163.59,163.58,35.66000708]
[1730562919763,0.6010546,163.59,163.58,55.66000708]
[1730562919959,0.6010546,163.59,163.58,61.77320708]
[1730562920776,0.6010546,163.59,163.58,67.23320708]
[1730562920976,16.0107,163.65,163.59,20.0]
[1730562921162,16.0107,163.65,163.58,67.23320708]
[1730562921163,11.50665308,163.68,163.62,35.28353708]
[1730562921487,27.51735308,163.69,163.65,20.0]
[1730562922247,27.51735308,163.69,163.66,21.3857]
[1730562922478,11.50665308,163.68,163.67,20.0]
[1730562925182,11.50665308,163.68,163.67,26.1098]
[1730562925693,11.50665308,163.68,163.67,20.0]
[1730562926060,11.50665308,163.68,163.67,26.1098]
[1730562927885,11.50665308,163.68,163.67,20.0]
[1730562928870,11.50665308,163.68,163.6,26.1124]
[1730562929083,11.50665308,163.65,163.62,20.0]
[1730562929282,11.50665308,163.64,163.62,20.0]
[1730562930879,46.02661232,163.68,163.64,20.0]
[1730562931188,11.50665308,163.65,163.64,20.0]
[1730562931967,11.50665308,163.65,163.64,26.1109]
[1730562932969,11.50665308,163.65,163.63,21.3896]
[1730562933163,11.50665308,163.64,163.63,21.3896]
[1730562933977,11.50665308,163.64,163.6,21.3934]
[1730562934184,0.1,163.67,163.61,20.0]
[1730562934359,11.50665308,163.62,163.61,20.0]
[1730562934683,46.02661232,163.68,163.61,20.0]
[1730562935585,11.50665308,163.64,163.61,20.0]
[1730562935965,11.50665308,163.65,163.61,20.0]
[1730562936387,11.50665308,163.65,163.62,21.391]
[1730562936570,11.50665308,163.65,163.63,20.0]
[1730562936772,11.50665308,163.66,163.63,20.0]
[1730562937362,11.50665308,163.67,163.63,20.0]
[1730562937594,11.50665308,163.67,163.64,23.902374]
[1730562937969,11.50665308,163.67,163.65,20.0]
[1730562938389,11.50665308,163.68,163.65,20.0]
[1730562938790,16.0107,163.69,163.66,41.3857]
[1730562938977,11.50665308,163.67,163.66,41.3857]
[1730562945510,11.50665308,163.67,163.63,41.3894]
[1730562945820,11.50665308,163.64,163.63,41.3894]
[1730562953108,11.50665308,163.64,163.6,15.2807]
[1730562953298,11.50665308,163.61,163.6,15.2807]
[1730562953612,11.50665308,163.62,163.6,15.2807]
[1730562954403,11.50665308,163.63,163.61,20.0]
[1730562955117,11.50665308,163.63,163.62,26.1117]
[1730562959607,11.50665308,163.64,163.63,20.0]
[1730562961622,11.50665308,163.65,163.63,41.3896]
[1730562962023,11.50665308,163.66,163.63,41.3896]
[1730562963023,11.50665308,163.65,163.63,41.3896]
[1730562964422,11.50665308,163.68,163.63,83.45295308]
[1730562964636,11.50665308,163.67,163.63,71.9463]
[1730562965315,11.50665308,163.66,163.63,71.9463]
[1730562966341,11.50665308,163.64,163.63,41.3896]
[1730562976945,11.50665308,163.64,163.6,21.3931]
[1730562977112,11.50665308,163.61,163.6,21.3931]
[1730562978140,11.50665308,163.61,163.6,41.3931]
[1730562978840,11.50665308,163.63,163.6,41.3931]
[1730562979144,11.50665308,163.65,163.61,20.0]
[1730562979838,16.3831,163.71,163.61,20.0]
[1730562979839,11.50665308,163.64,163.61,20.0]
[1730562980222,11.50665308,163.63,163.61,20.0]
[1730562980629,11.50665308,163.62,163.61,20.0]
[1730562981021,11.50665308,163.62,163.61,26.112]
[1730562981818,46.02661232,163.68,163.61,26.112]
[1730562981819,11.50665308,163.63,163.61,26.112]
[1730562982031,11.50665308,163.63,163.61,41.3922]
[1730562983244,11.50665308,163.64,163.61,41.3922]
[1730562983932,11.50665308,163.63,163.61,41.3922]
[1730562990022,11.50665308,163.62,163.61,41.3922]
[1730562990528,11.50665308,163.64,163.61,95.854974]
[1730562990738,11.50665308,163.65,163.63,20.0]
[1730562991134,11.50665308,163.65,163.64,26.1109]
[1730562991358,11.50665308,163.67,163.65,20.0]
[1730562992149,11.50665308,163.66,163.65,20.0]
[1730562992347,11.50665308,163.67,163.66,23.776884]
[1730562992548,11.50665308,163.67,163.66,20.0]
[1730562993041,11.50665308,163.67,163.65,20.0]
[1730562993346,11.50665308,163.66,163.65,20.0]
[1730562994246,11.50665308,163.66,163.65,26.1106]
[1730563016261,11.50665308,163.67,163.65,26.1106]
[1730563016444,11.50665308,163.68,163.65,41.3871]
[1730563017543,11.50665308,163.68,163.65,41.3871]
[1730563018855,11.50665308,163.67,163.65,41.3871]
[1730563020159,11.50665308,163.66,163.65,65.163984]
[1730563020552,11.50665308,163.66,163.65,41.3871]
[1730563024468,11.50665308,163.67,163.65,41.3871]
[1730563027472,11.50665308,163.66,163.65,41.3871]
[1730563031380,11.50665308,163.67,163.65,41.3871]
[1730563032154,11.50665308,163.68,163.66,24.027864]
[1730563032381,11.50665308,163.71,163.69,43.776884]
[1730563034878,11.50665308,163.72,163.69,43.776884]
[1730563035773,11.50665308,163.71,163.69,43.776884]
[1730563038296,10.00665308,163.71,163.69,43.776884]
[1730563039500,11.50665308,163.7,163.69,43.776884]
[1730563039672,11.50665308,163.71,163.69,43.776884]
[1730563039876,11.50665308,163.72,163.71,20.0]
[1730563040282,11.50665308,163.73,163.71,20.0]
[1730563040480,11.50665308,163.74,163.71,20.0]
[1730563040897,11.50665308,163.74,163.73,20.0]
[1730563045703,11.50665308,163.74,163.73,43.776884]
[1730563046800,12.10770768,163.75,163.73,43.776884]
[1730563048095,0.6010546,163.75,163.74,43.776884]
[1730563049888,0.6010546,163.75,163.74,44.153354]
[1730563052286,0.6010546,163.75,163.74,55.66000708]
[1730563052694,0.6010546,163.75,163.74,55.76000708]
[1730563052884,0.6010546,163.75,163.74,64.15766054]
[1730563054709,0.6010546,163.75,163.74,52.65100746]
[1730563055206,0.6010546,163.75,163.74,64.15766054]
[1730563055811,0.6010546,163.75,163.74,52.65100746]
[1730563056184,0.6010546,163.75,163.74,52.55100746]
[1730563056505,12.10770768,163.75,163.7,16.6626]
[1730563056709,11.50665308,163.74,163.71,0.1]
[1730563056884,0.6010546,163.75,163.71,20.00430654]
[1730563057399,0.6010546,163.75,163.72,0.12549]
[1730563057596,0.6010546,163.75,163.72,20.12549]
[1730563057781,0.6010546,163.75,163.72,40.02979654]
[1730563057981,0.6010546,163.75,163.74,44.027864]
[1730563061195,0.6010546,163.75,163.74,44.153354]
[1730563064996,0.6010546,163.75,163.74,61.11000708]
[1730563065198,0.6010546,163.75,163.74,61.21000708]
[1730563066892,11.50665308,163.79,163.75,24.153354]
[1730563067113,11.50665308,163.8,163.78,20.37647]
[1730563067301,11.50665308,163.81,163.8,20.0]
[1730563067500,11.50665308,163.81,163.8,43.776884]
[1730563067804,11.50665308,163.83,163.8,43.776884]
[1730563067998,11.50665308,163.82,163.8,43.776884]
[1730563068811,15.7984,163.88,163.8,43.776884]
[1730563068812,11.50665308,163.83,163.8,43.776884]
[1730563071303,11.50665308,163.82,163.8,43.776884]
[1730563073416,11.50665308,163.83,163.8,43.776884]
[1730563074117,11.50665308,163.83,163.82,20.0]
[1730563074322,11.50665308,163.84,163.82,20.0]
[1730563076495,11.50665308,163.83,163.82,43.776884]
[1730563080120,11.50665308,163.83,163.75,8.39765346]
[1730563080322,11.50665308,163.77,163.74,6.3497569]
[1730563080522,11.50665308,163.76,163.74,6.3497569]
[1730563081027,11.50665308,163.77,163.74,6.3497569]
[1730563081397,11.50665308,163.77,163.75,20.12549]
[1730563082413,11.50665308,163.78,163.75,20.12549]
[1730563082813,11.50665308,163.78,163.74,20.12549]
[1730563083013,11.50665308,163.78,163.75,23.902374]
[1730563083207,11.50665308,163.78,163.76,20.0]
[1730563083927,11.50665308,163.77,163.76,20.0]
[1730563086430,11.50665308,163.78,163.76,20.0]
[1730563086612,11.50665308,163.77,163.76,20.0]
[1730563087502,9.00665308,163.77,163.76,41.3726]
[1730563087703,16.2296,163.82,163.76,65.274974]